Cogmind - Beta 16 @@@ ROGUE MODE // 2026.02.03 @ 23:19:38 Player: FISH Result: Destroyed by S-27 Virus with Autogun Performance ------------- Evolutions (3) 1500 Regions Visited (13) 2600 Robots Destroyed (185) 925 Value Destroyed (8447) 8447 Prototype IDs (29) 580 Alien Tech Used (0) 0 Bonus (4297) 4297 TOTAL SCORE: 18349 Bonus ------- High Alert Combat Kills 1356 Follower Combat Kills 1410 Entered Garrisons 600 Used RIF Installer 2000 Friendly Fire -1069 Cogmind --------- Core Integrity 0/700 Matter 300/300 Energy 100/100 System Corruption 5% Temperature Cool (0) Movement Rolling (150) Ox4 Location -7/Lower Caves Parts ------- > --- POWER (1) -------- (None) > --- PROPULSION (3) --- Heavy Treads (fused) Armored Wheel > --- UTILITY (6) ------ High-capacity Storage Unit Advanced Hacking Suite Relay Coupler [Swarmer] (25) Relay Coupler [Grunt] (13) Relay Coupler [Sentry] (22) Relay Coupler [Hunter] (18) > --- WEAPON (3) ------- Heavy Machine Gun Mass Driver Remote Datajack > --- INVENTORY (20) --- Improved Deuterium Engine Heavy Treads Improved Coolant Injector High-capacity Battery (250) Machine Analyzer Long-range Sensor Array Advanced Targeting Computer Medium Reactive Plating Medium Reactive Plating Improved Shield Generator Relay Coupler [NC] (33) Relay Coupler [NC] (23) Relay Coupler [Grunt] (22) Relay Coupler [Grunt] (26) Relay Coupler [Hunter] (13) Variable Charge Gun Quantum Rifle Proton Missile Launcher Improved Plasma Cutter Peak State ------------ > --- POWER ------------ Antimatter Reactor > --- PROPULSION ------- Medium Treads Heavy Treads > --- UTILITY ---------- High-capacity Storage Unit Improved Medium Armor Plating Advanced Hacking Suite System Shield Relay Coupler [Swarmer] Relay Coupler [Grunt] > --- WEAPON ----------- Variable Charge Gun Mass Driver Remote Datajack > --- INVENTORY -------- Improved Deuterium Engine Heavy Treads Improved Cooling System Improved Coolant Injector High-capacity Battery Long-range Sensor Array Advanced Targeting Computer Medium Reactive Plating Medium Reactive Plating Improved Shield Generator Relay Coupler [NC] Relay Coupler [Grunt] Relay Coupler [Sentry] Relay Coupler [Hunter] Quantum Rifle Heavy Machine Gun Proton Missile Launcher Improved Plasma Cutter [Rating: 67] Favorites ----------- Power Light Angular Momentum Engine Engine Light Angular Momentum Engine Power Core Enhanced Nuclear Core Reactor Antimatter Reactor Propulsion Heavy Treads Treads Heavy Treads Wheel Armored Huge Wheel Utility High-capacity Storage Unit Device Recoil Stabilizer Storage High-capacity Storage Unit Processor Improved Signal Interpreter Hackware Relay Coupler [Grunt] Protection Heavy Armor Plating Weapon Remote Datajack Energy Gun Lightning Gun Energy Cannon Proton Cannon Ballistic Gun High-powered Shotgun Ballistic Cannon Battle Cannon Launcher Grenade Launcher Special Weapon Remote Datajack Slashing Weapon Katana Special Melee Weapon Datajack Build | -11 -10 -10 -10 -8 -8 -8 -8 -7 -7 -7 -7 -7 -7 ------- Run | Yrd Mat Min Sub Mat Gar Mat Gar Fac Was Fac Gar Fac Low Slots Evolved 6 | . . . . 4 . . . 2 . . . . . Power . | . . . . . . . . . . . . . . Propulsion 1 | . . . . . . . . 1 . . . . . Utility 4 | . . . . 4 . . . . . . . . . Weapon 1 | . . . . . . . . 1 . . . . . Parts Attached 126 | 7 5 2 9 12 15 7 8 27 5 5 20 3 1 Power 9 | 1 . . 2 . 2 . 1 1 . 1 1 . . Engine 6 | 1 . . 2 . 2 . 1 . . . . . . Core 2 | . . . . . . . . 1 . 1 . . . Reactor 1 | . . . . . . . . . . . 1 . . Propulsion 22 | 2 1 . 2 2 2 . 1 8 1 . 1 2 . Treads 8 | 1 . . 1 1 1 . . 1 1 . 1 1 . Leg . | . . . . . . . . . . . . . . Wheel 14 | 1 1 . 1 1 1 . 1 7 . . . 1 . Hover . | . . . . . . . . . . . . . . Flight . | . . . . . . . . . . . . . . Utility 53 | 2 2 1 1 7 5 5 4 12 3 . 10 . 1 Device 13 | 1 . . . 3 2 . . 4 1 . 2 . . Storage 5 | 1 1 . . 1 . . . 1 1 . . . . Processor 5 | . 1 . . . . . . 3 1 . . . . Hackware 16 | . . . . . 1 3 2 3 . . 6 . 1 Protection 14 | . . 1 1 3 2 2 2 1 . . 2 . . Artifact . | . . . . . . . . . . . . . . Weapon 42 | 2 2 1 4 3 6 2 2 6 1 4 8 1 . Energy Gun 8 | 1 . . . . . . . 2 . 4 1 . . Energy Cannon 5 | . 1 . 1 . 2 . . 1 . . . . . Ballistic Gun 12 | 1 1 . 2 2 1 1 1 1 . . 1 1 . Ballistic Cannon 4 | . . . 1 . . . . 1 . . 2 . . Launcher 7 | . . 1 . 1 1 . 1 . 1 . 2 . . Special Weapon 4 | . . . . . . 1 . 1 . . 2 . . Impact Weapon . | . . . . . . . . . . . . . . Slashing Weapon 1 | . . . . . 1 . . . . . . . . Piercing Weapon . | . . . . . . . . . . . . . . Special Melee Weapon 1 | . . . . . 1 . . . . . . . . Unidentified Prototypes 8 | . . . . . . . . 4 3 1 . . . Parts Lost 38 | . 1 2 1 3 5 . 4 17 . 1 4 . . Power 6 | . . 1 . . . . 1 2 . . 2 . . Propulsion 12 | . 1 . 1 . 1 . 1 7 . . 1 . . Utility 10 | . . . . 1 2 . 2 4 . . 1 . . Weapon 10 | . . 1 . 2 2 . . 4 . 1 . . . Highest Loss Streak 7 | . 1 2 1 2 2 . 2 7 . 1 3 . . To Critical Strikes . | . . . . . . . . . . . . . . Average Backups 15 | 2 8 9 9 15 17 19 18 14 11 17 18 19 18 Power . | . 1 1 . . . . . . 1 1 . 1 1 Propulsion 1 | 1 1 2 2 2 1 1 . . 2 2 1 1 1 Utility 8 | . 2 3 3 4 8 13 12 10 4 7 10 13 12 Weapon 4 | . 2 2 3 6 5 4 5 3 2 3 4 3 3 Tool/Special . | . . . . . . . . . . . . . . Unused Backups 64 | . 2 . 1 6 8 2 4 15 . 8 4 . 14 Power 6 | . . . . . 1 . . 1 . 3 . . 1 Propulsion 7 | . 1 . . 2 2 . . . . 2 . . . Utility 37 | . . . . 1 2 2 4 11 . 3 2 . 12 Weapon 12 | . 1 . 1 3 2 . . 2 . . 2 . 1 Tool/Special 2 | . . . . . 1 . . 1 . . . . . Average Slot Usage (%) 88 | . 100 93 99 98 85 86 85 80 83 89 91 84 84 Engine 5 | . 14 8 12 8 9 9 9 2 6 1 . . . Treads 8 | . 14 14 13 8 8 . . 2 13 15 15 8 7 Wheel 6 | . 14 14 13 8 5 9 8 14 1 . . 5 7 Device 8 | . 2 . 8 23 21 4 . 5 1 6 1 . . Storage 8 | . 14 14 13 8 9 9 9 4 5 7 7 7 7 Processor 3 | . 11 8 . . . . . 4 15 15 1 . . Hackware 16 | . . . . . 2 27 34 23 23 15 27 38 38 Protection 6 | . . 5 4 17 11 9 6 2 . . 6 . . Energy Gun 4 | . 13 . . . . . . . 14 20 8 3 . Energy Cannon 2 | . . 14 13 1 1 1 5 2 . . . . . Ballistic Gun 7 | . 14 12 9 14 12 8 4 2 . . 3 5 7 Ballistic Cannon 1 | . . . 9 7 . . . . . . 2 2 7 Special Weapon 2 | . . . . . . 5 5 3 . . 6 8 7 Slashing Weapon 1 | . . . . . 1 1 1 5 . . . . . Peak Build Rating 67 | 7 8 8 27 42 42 48 52 56 53 60 67 60 59 Average Rating 42 | 4 7 7 14 35 34 44 48 37 47 57 63 57 58 On Entrance 33 | . 7 8 7 25 33 42 46 52 26 53 55 60 57 Avg Prop Armor Cover (%) 18 | 3 12 12 10 8 5 . . 33 21 . . 19 18 Naked Turns . | . . . . . . . . . . . . . . Heaviest Build 85 | 15 20 21 37 70 85 72 75 77 46 61 81 57 57 Greatest Support 98 | 20 16 10 20 20 40 28 28 44 98 98 98 98 12 Greatest Overweight (x) 6 | . 1 2 1 6 6 2 2 3 2 . . 4 4 Average Overweight (x) 1 | . . 1 1 4 1 2 1 . . . . 3 4 Largest Inventory Capacity 20 | 8 10 10 10 20 20 20 20 20 20 20 20 20 20 Average Capacity 17 | 7 9 10 10 18 20 20 20 14 17 20 20 20 20 Most Carried 20 | 4 10 10 10 20 20 20 20 20 19 20 20 20 20 Average Carried 17 | 3 8 9 9 16 18 19 19 14 13 19 19 19 19 Final Capacity 20 | 8 10 10 10 20 20 20 20 5 20 20 20 20 20 Final Carried 20 | 4 10 8 10 20 20 20 20 5 19 20 20 20 20 Class Distribution -------------------- 34% | Mutant 23% | Bothacker-Mutant 10% | Botlord-Tank 8% | Bothacker-Tank 5% | Gunner 5% | Skirmisher Dominant Class ---------------- Mutant | -10/Materials Mutant | -10/Mines Mutant | -10/Subcaves Gunner | -8/Materials Mutant | -8/Garrison Bothacker-Mutant | -8/Materials Bothacker-Mutant | -8/Garrison Bothacker-Mutant | -7/Factory Mutant | -7/Waste Skirmisher | -7/Factory Bothacker-Tank | -7/Garrison Botlord-Tank | -7/Factory Botlord-Tank | -7/Lower Caves Resources | -11 -10 -10 -10 -8 -8 -8 -8 -7 -7 -7 -7 -7 -7 ----------- Run | Yrd Mat Min Sub Mat Gar Mat Gar Fac Was Fac Gar Fac Low Matter Collected 5292 | 291 210 10 273 698 954 230 348 910 75 102 986 103 102 Remotely 182 | . . . . 182 . . . . . . . . . Salvage Created 5676 | 94 545 37 163 947 980 207 383 1259 . 137 924 . . Parts 343 | 7 42 . 10 56 71 12 34 70 . 6 35 . . Haulers Intercepted 3 | . 1 . . 1 . . . 1 . . . . . Recyclers Shooed 1 | 1 . . . . . . . . . . . . . Parts Field Recycled . | . . . . . . . . . . . . . . Retrieved Matter . | . . . . . . . . . . . . . . Parts Self-Destructed 17 | . . . 12 . . . . . . . . . 5 Prevented . | . . . . . . . . . . . . . . Parts Restored . | . . . . . . . . . . . . . . Kills | -11 -10 -10 -10 -8 -8 -8 -8 -7 -7 -7 -7 -7 -7 ------- Run | Yrd Mat Min Sub Mat Gar Mat Gar Fac Was Fac Gar Fac Low Combat Hostiles Destroyed 150 | . 12 15 4 19 33 5 21 16 . 2 23 . . Melee 3 | . . . . . . 1 . 2 . . . . . Guns 67 | . 12 1 2 14 18 1 4 3 . 2 10 . . Cannons 16 | . . 3 2 2 2 3 2 1 . . 1 . . AOE 62 | . . 11 . 3 13 . 14 10 . . 11 . . Classes Destroyed 20 | 2 6 1 1 4 2 . 2 2 . . . . . Worker 7 | . . . . 2 . . . 5 . . . . . Builder 5 | . 1 . . 2 . . . 2 . . . . . Tunneler 3 | 2 . . . . . 1 . . . . . . . Hauler 3 | . 1 . . 1 . . . 1 . . . . . Recycler 10 | 1 1 . . 3 . . . 5 . . . . . Mechanic 2 | . . . . . . . . 2 . . . . . Operator 3 | . 2 . . . . . . 1 . . . . . Watcher 11 | . 3 . . 3 2 . 1 2 . . . . . Swarmer 51 | . 6 . . 7 14 2 10 3 . . 9 . . Grunt 41 | . 6 . . 6 9 3 2 7 . . 8 . . Brawler 4 | . . . . . . . . 2 . 1 1 . . Duelist 4 | . . . . 1 . . . 3 . . . . . Protector 1 | . . . . . . . 1 . . . . . . Sentry 16 | . . . . 4 5 . . . . 1 6 . . Demolisher 1 | . . . . . . . 1 . . . . . . Specialist 1 | . . . . . 1 . . . . . . . . Hunter 3 | . . . . 1 . . 2 . . . . . . Programmer 11 | . . . . . 3 . 6 2 . . . . . Subdweller 4 | . . . 4 . . . . . . . . . . Assembled 15 | . . 15 . . . . . . . . . . . Thug 2 | . . . . . 1 . . . . . 1 . . Savage 2 | . . . . . . . . . . . 2 . . Best Kill Streak 15 | 3 6 15 2 7 5 3 7 13 . 1 6 . . Combat Bots Only 15 | . 6 15 2 4 5 3 7 9 . 1 6 . . Max Kills in Single Turn 5 | 1 2 4 1 4 3 1 5 3 . 1 2 . . Gunslinging 1 | . 1 . . 1 . . . . . . . . . Exploded 5 | . . 4 . 1 3 . 5 2 . . 2 . . Melee 1 | . . . . . . 1 . 1 . . . . . Uniques/NPCs Destroyed . | . . . . . . . . . . . . . . Combat | -11 -10 -10 -10 -8 -8 -8 -8 -7 -7 -7 -7 -7 -7 -------- Run | Yrd Mat Min Sub Mat Gar Mat Gar Fac Was Fac Gar Fac Low Hostile Shots Fired 842 | . 72 22 13 65 140 22 77 111 . 10 276 4 30 Missed 263 | . 22 5 7 14 43 8 16 41 . 4 91 1 11 Hits 579 | . 50 17 6 51 97 14 61 70 . 6 185 3 19 Melee 15 | . . 2 . . . . . 9 . . 4 . . Projectile 564 | . 50 15 6 51 97 14 61 61 . 6 181 3 19 AOE 10 | . . . . . . . 9 . . . 1 . . Critical Strikes 12 | . . . 1 . 2 . 4 2 . . 3 . . Actively Blocked 1 | . . . 1 . . . . . . . . . . Damage Taken 8369 | . 475 316 197 631 1247 171 1201 1497 . 187 2087 44 316 Core 1233 | . 126 61 27 34 72 34 173 396 . 15 187 . 108 Absorbed by Shields 93 | . . . . . . . . . . . 93 . . Redirected to Shielding 69 | . . 27 9 33 . . . . . . . . . Regen/Repaired (Parts) 31 | . . . . . . . . . 22 9 . . . Core Remaining (%) 52 | 100 . . 14 . . . 43 . . . . . . Volleys Fired 472 | 7 55 12 17 54 90 23 54 44 . 7 99 6 4 Largest 4 | 2 2 2 4 3 2 2 2 2 . 3 3 1 1 Hottest 171 | 70 80 80 171 141 100 75 100 105 . 165 150 47 5 Shots Fired 779 | 14 111 16 36 118 141 28 69 50 . 19 166 6 5 Gun 512 | 14 110 4 11 72 101 15 25 27 . 19 110 3 1 Cannon 156 | . 1 4 25 44 21 9 23 7 . . 21 1 . Launcher 74 | . . 8 . 2 19 . 15 11 . . 18 1 . Special 37 | . . . . . . 4 6 5 . . 17 1 4 Kinetic 437 | 7 55 4 18 109 102 15 34 29 . . 59 4 1 Thermal 136 | 7 56 4 18 7 2 . . 14 . . 28 . . Explosive 51 | . . 8 . 2 18 . 6 2 . . 15 . . Electromagnetic 122 | . . . . . 19 9 23 . . 19 51 1 . Robot Hit Streak 17 | 6 8 3 14 17 15 5 6 9 . 5 14 3 5 Robot Miss Streak 6 | 2 3 1 1 2 6 2 3 3 . 4 3 1 2 Penetration Max 1 | . . . . . . . . . . . 1 . . Secondary Targets 5 | . 1 . . 1 2 . . 1 . . . . . Max Gunslinging Chain 1 | . 1 . . 1 1 . . 1 . . . . . Shots Hit Robots 470 | 9 69 7 16 63 90 20 30 60 . 12 88 3 3 Core Hits 333 | 4 31 27 7 48 70 8 34 52 . 3 49 . . Critical Kills 5 | . 1 . . 2 1 . . . . . 1 . . Critical Parts Destroyed 5 | . . . . . 1 . 1 . . . 3 . . Critical Strikes 16 | . 6 . . 2 2 . 1 . . . 5 . . Burn 5 | . 5 . . . . . . . . . . . . Meltdown 1 | . . . . 1 . . . . . . . . . Destroy 9 | . 1 . . 1 2 . 1 . . . 4 . . Corrupt 1 | . . . . . . . . . . . 1 . . Melee Attacks 109 | . . . . . 41 6 5 57 . . . . . Impact . | . . . . . . . . . . . . . . Slashing 104 | . . . . . 36 6 5 57 . . . . . Piercing . | . . . . . . . . . . . . . . Sneak Attacks 20 | . . . . . 7 . 1 12 . . . . . Combat Hostiles . | . . . . . . . . . . . . . . Follow-up Attacks . | . . . . . . . . . . . . . . Damage Inflicted 17132 | 125 876 894 294 1883 2981 447 1980 3340 . 185 4024 82 21 Guns 6008 | 125 858 23 122 1025 1310 142 222 405 . 185 1519 51 21 Cannons 1824 | . 18 53 172 428 341 235 174 27 . . 376 . . Explosions 7571 | . . 818 . 430 975 . 1512 1676 . . 2129 31 . Melee 1703 | . . . . . 355 70 72 1206 . . . . . Ramming 26 | . . . . . . . . 26 . . . . . Kinetic 7394 | 48 434 23 163 1288 1310 142 1323 1448 . . 1143 51 21 Thermal 1419 | 77 442 53 131 165 . . . 160 . . 391 . . Explosive 4836 | . . 818 . 430 975 . 411 500 . . 1702 . . Electromagnetic 1754 | . . . . . 341 235 174 . . 185 788 31 . Impact . | . . . . . . . . . . . . . . Slashing 1703 | . . . . . 355 70 72 1206 . . . . . Piercing . | . . . . . . . . . . . . . . Highest Corruption 7 | . 1 1 1 . . . 7 2 2 2 2 5 5 Average Corruption 2 | . 1 1 1 . . . 6 1 2 2 2 3 5 Corruption Purged 3 | . . . . . . . . 3 . . . . . Corruption Blocked . | . . . . . . . . . . . . . . Effects 107 | . 3 3 3 . . . 22 3 7 18 29 10 9 Message Errors 19 | . . . . . . . 4 . 1 1 8 2 3 Matter Fused 22 | . . . 1 . . . 3 . 1 4 10 1 2 Heat Flow Errors 19 | . 1 1 . . . . 4 1 1 4 4 2 1 Energy Discharges 11 | . 1 2 1 . . . 1 1 1 1 . 1 2 Parts Rejected 1 | . . . . . . . . . . . . 1 . Parts Fused 2 | . . . . . . . 1 . . . . 1 . Data Loss (minor) 15 | . . . . . . . 5 . 3 2 5 . . Data Loss (major) 4 | . . . . . . . 1 . . 2 . 1 . Misfires 8 | . 1 . 1 . . . 2 . . 2 1 . 1 Alerts 4 | . . . . . . . 1 . . 1 1 1 . Weapon Failures 2 | . . . . . . . . 1 . 1 . . . Overload Shots . | . . . . . . . . . . . . . . Overflow Damage 606 | . . 30 . 71 18 33 83 238 . . 133 . . Projectiles 41 | . . . . 5 . 33 . . . . 3 . . Explosions 355 | . . 30 . 66 12 . 83 34 . . 130 . . Melee 210 | . . . . . 6 . . 204 . . . . . Knockbacks 3 | . . . . 2 . . . . . . 1 . . Impact . | . . . . . . . . . . . . . . Kinetic 3 | . . . . 2 . . . . . . 1 . . Secondary . | . . . . . . . . . . . . . . Self-Inflicted Damage 533 | . . 40 . . 64 . 111 170 . . 148 . . Shots 14 | . . 1 . . 3 . 3 4 . . 3 . . Rammed . | . . . . . . . . . . . . . . Targets Rammed . | . . . . . . . . . . . . . . Kicked . | . . . . . . . . . . . . . . Crushed . | . . . . . . . . . . . . . . Highest Temperature 359 | 63 181 246 102 144 217 132 279 263 160 198 359 183 98 Average Temperature 69 | 31 51 38 43 32 82 55 56 49 89 72 105 86 64 Received Heat Transfer 1634 | . 114 . 27 153 351 45 18 270 . 48 578 . 30 Effects 7 | . . 2 . . . . . . . . 5 . . Energy Bleed 1 | . . . . . . . . . . . 1 . . Interference 6 | . . 2 . . . . . . . . 4 . . Siege Activations 2 | . . . . . . . . . . . 2 . . Total Turns 22 | . . . . . . . . . . . 22 . . Longest Duration 17 | . . . . . . . . . . . 17 . . Martial Activations . | . . . . . . . . . . . . . . Shielding Activations . | . . . . . . . . . . . . . . Robots Disrupted . | . . . . . . . . . . . . . . Combat Hostiles . | . . . . . . . . . . . . . . Robots Corrupted 2 | . . . . . . . 1 . . . 1 . . Combat Hostiles 2 | . . . . . . . 1 . . . 1 . . Parts Fried 10 | . . . . . 3 1 2 . . . 4 . . Impact Corruptions . | . . . . . . . . . . . . . . Robots Melted 1 | . . . . 1 . . . . . . . . . Combat Hostiles . | . . . . . . . . . . . . . . Parts Melted 5 | . 3 . . 1 . . . . . . 1 . . Heat Transferred 3247 | 222 1665 111 259 222 . . . 309 . . 459 . . Parts Sabotaged . | . . . . . . . . . . . . . . Parts Stolen . | . . . . . . . . . . . . . . Parts Stripped . | . . . . . . . . . . . . . . Power Chain Reactions 2 | . . . . . . . . . . . 2 . . Alert | -11 -10 -10 -10 -8 -8 -8 -8 -7 -7 -7 -7 -7 -7 ------- Run | Yrd Mat Min Sub Mat Gar Mat Gar Fac Was Fac Gar Fac Low Maximum Alert Level 5 | . . . . 1 5 3 4 3 1 1 4 2 . Low Security (%) 33 | 100 100 100 . 90 . . . . 64 97 21 . . Level 1 5 | . . . . 9 10 . . . 35 2 4 . . Level 2 27 | . . . . . 38 43 26 33 . . 42 100 . Level 3 24 | . . . . . 21 56 48 66 . . 24 . . Level 4 8 | . . . . . 25 . 24 . . . 7 . . Level 5 . | . . . . . 3 . . . . . . . . High Security . | . . . . . . . . . . . . . . Max Security . | . . . . . . . . . . . . . . Peak Influence 1715 | 10 170 45 . 353 1715 835 1288 880 302 248 1156 606 . Initial 835 | . . 45 . . 224 835 436 676 302 16 71 606 . Average 521 | 1 93 10 . 96 852 727 933 713 157 55 555 545 . Influence Increases 6992 | 15 420 28 . 707 1561 195 892 915 . 692 1275 220 72 Destroy 0b10 Robot/C 3015 | . 240 . . 380 700 120 360 285 . 300 495 90 45 Destroy 0b10 Robot/NC 232 | 15 40 . . 55 15 10 9 72 . 4 . 12 . Destroy Leader 406 | . 58 . . 98 30 32 28 62 . 40 24 26 8 Allied During Kill 534 | . . . . . 17 6 2 5 . 295 104 86 19 Successful Hack 130 | . 5 . . 17 12 10 34 36 . 7 9 . . Select Force Hacks 60 | . 60 . . . . . . . . . . . . Disable Machine 144 | . . . . 30 . . 42 48 . 24 . . . Anti-Garrison Action 1406 | . . . . . 650 . 189 113 . . 454 . . Destroy Structure 597 | . 2 28 . 22 107 2 213 78 . 22 117 6 . Partial Spotted 36 | . . . . . . . . 36 . . . . . Lose Combat Pursuer 432 | . 15 . . 105 30 15 15 180 . . 72 . . Influence Decreases 6871 | 15 304 144 . 362 191 1238 276 1338 841 614 221 824 503 Entered New Map 3277 | . . 71 . . 121 880 236 612 563 8 31 550 205 Time Decay 2576 | 15 294 55 . 342 . 318 . 556 278 266 . 254 198 Lost Part 358 | . 10 18 . 20 50 . 40 170 . 10 40 . . Lost Ally 510 | . . . . . 20 40 . . . 180 150 20 100 Purge Threat 150 | . . . . . . . . . . 150 . . . Squads Dispatched 28 | . 4 . . 4 . 3 . 13 . 3 . 1 . Investigation 5 | . 2 . . . . . . 2 . 1 . . . Extermination 6 | . . . . . . . . 3 . 2 . 1 . Reinforcement 7 | . 2 . . 1 . 3 . 1 . . . . . Assault 6 | . . . . . . . . 6 . . . . . Garrison 4 | . . . . 3 . . . 1 . . . . . Intercept . | . . . . . . . . . . . . . . Searches Triggered . | . . . . . . . . . . . . . . Construction Impeded . | . . . . . . . . . . . . . . Haulers Reinforced 1 | . . . . . . . . 1 . . . . . Active Scanning Responses . | . . . . . . . . . . . . . . Cargo Convoy Interrupts . | . . . . . . . . . . . . . . Stealth | -11 -10 -10 -10 -8 -8 -8 -8 -7 -7 -7 -7 -7 -7 --------- Run | Yrd Mat Min Sub Mat Gar Mat Gar Fac Was Fac Gar Fac Low Distress Signals 9 | . 1 1 . 3 1 1 . 1 . . . 1 . Communications Jammed . | . . . . . . . . . . . . . . Distress Signals . | . . . . . . . . . . . . . . Times Spotted 263 | . 23 19 4 32 38 11 24 53 . 9 39 6 5 Peak Tracking Total 17 | . 8 17 2 5 5 3 7 11 . 2 7 2 4 Tactical Retreats 20 | . 1 1 . 3 2 1 1 6 . . 5 . . Traps | -11 -10 -10 -10 -8 -8 -8 -8 -7 -7 -7 -7 -7 -7 ------- Run | Yrd Mat Min Sub Mat Gar Mat Gar Fac Was Fac Gar Fac Low Traps Triggered 22 | . 1 . 1 . 6 . 2 3 . 1 7 1 . Indirectly . | . . . . . . . . . . . . . . Trap Hack Attempts . | . . . . . . . . . . . . . . Triggered . | . . . . . . . . . . . . . . Disarmed . | . . . . . . . . . . . . . . Reprogrammed . | . . . . . . . . . . . . . . Reused . | . . . . . . . . . . . . . . Traps Extracted . | . . . . . . . . . . . . . . Installed . | . . . . . . . . . . . . . . Triggered . | . . . . . . . . . . . . . . Machines | -11 -10 -10 -10 -8 -8 -8 -8 -7 -7 -7 -7 -7 -7 ---------- Run | Yrd Mat Min Sub Mat Gar Mat Gar Fac Was Fac Gar Fac Low Machines Disabled 30 | . . . 1 2 5 . 6 5 . 2 9 . . Max in Single Turn 2 | . . . 1 1 2 . 2 2 . . 1 . . Garrison Access 1 | . . . . . . . . 1 . . . . . Garrison Relay 14 | . . . . . 3 . 3 . . . 8 . . Phase Generator 1 | . . . . . 1 . . . . . . . . Machines Repaired . | . . . . . . . . . . . . . . Machines Dismantled 6 | . . . . . . . . . . . 6 . . Machines Sabotaged . | . . . . . . . . . . . . . . Overloaded Fab Kills . | . . . . . . . . . . . . . . Hacking | -11 -10 -10 -10 -8 -8 -8 -8 -7 -7 -7 -7 -7 -7 --------- Run | Yrd Mat Min Sub Mat Gar Mat Gar Fac Was Fac Gar Fac Low Machines Accessed 45 | . 3 . 1 9 4 5 2 13 . 4 3 1 . Terminals 33 | . 1 . . 8 4 3 2 9 . 3 3 . . Fabricators 3 | . . . . . . . . 2 . . . 1 . Repair Stations 1 | . . . . . . . . 1 . . . . . Recycling Units 2 | . 2 . . . . . . . . . . . . Scanalyzers 2 | . . . . . . 1 . 1 . . . . . Garrison Access 3 | . . . . 1 . 1 . . . 1 . . . Total Hacks 132 | . 7 . 1 30 9 15 4 40 . 19 5 2 . Successful 68 | . 4 . 1 17 2 10 3 17 . 9 3 2 . Failed 64 | . 3 . . 13 7 5 1 23 . 10 2 . . Catastrophic 7 | . . . . 1 . . . 4 . 2 . . . Database Lockouts . | . . . . . . . . . . . . . . Manual 76 | . 6 . . 25 . 11 2 19 . 12 . 1 . Terminals 109 | . 5 . . 29 9 12 4 27 . 18 5 . . Fabricators 6 | . . . . . . . . 4 . . . 2 . Repair Stations 3 | . . . . . . . . 3 . . . . . Recycling Units 2 | . 2 . . . . . . . . . . . . Scanalyzers 8 | . . . . . . 2 . 6 . . . . . Garrison Access 3 | . . . . 1 . 1 . . . 1 . . . Terminal Hacks 28 | . 2 . 1 6 2 3 2 5 . 4 3 . . Part Schematic 2 | . . . . . . . . 2 . . . . . Robot Analysis 5 | . 1 . . 1 . 2 . 1 . . . . . Prototype ID Bank 4 | . 1 . . 2 . . . . . 1 . . . Open Door 1 | . . . . . . . . . . . 1 . . Emergency Access Points 3 | . . . . . 1 . 1 . . . 1 . . Terminal Index 3 | . . . . 1 . . . 1 . 1 . . . Unreport Threat 1 | . . . . . . . . . . 1 . . . Locate Traps 1 | . . . . 1 . . . . . . . . . Maintenance Status 1 | . . . . . . . . . . 1 . . . Recall Investigation 1 | . . . . 1 . . . . . . . . . Hauler Manifests 2 | . . . . . . 1 . 1 . . . . . Garrison Registry 2 | . . . . . 1 . 1 . . . . . . Security Stations 1 | . . . . . . . . . . . 1 . . Proto ID Catalog 1 | . . . 1 . . . . . . . . . . Fabricator Hacks 3 | . . . . . . . . 2 . . . 1 . Network Status 2 | . . . . . . . . 1 . . . 1 . Build 1 | . . . . . . . . 1 . . . . . Repair Station Hacks 1 | . . . . . . . . 1 . . . . . Scan Component 1 | . . . . . . . . 1 . . . . . Recycling Unit Hacks . | . . . . . . . . . . . . . . Scanalyzer 7 | . . . . . . 2 . 5 . . . . . Insert Component 2 | . . . . . . . . 2 . . . . . Analyze 2 | . . . . . . . . 2 . . . . . Retrieve Study 3 | . . . . . . 2 . 1 . . . . . Garrison Access Hacks 3 | . . . . 1 . 1 . . . 1 . . . Unlock Access 3 | . . . . 1 . 1 . . . 1 . . . Unauthorized Hacks 26 | . 2 . . 10 . 4 1 4 . 4 . 1 . Terminals 23 | . . . . 10 . 4 1 4 . 4 . . . Track 2 | . . . . 1 . 1 . . . . . . . Assimilate 1 | . . . . . . . . . . 1 . . . Botnet 11 | . . . . 3 . 2 1 3 . 2 . . . Skim 9 | . . . . 6 . 1 . 1 . 1 . . . Fabricators 1 | . . . . . . . . . . . . 1 . Liberate 1 | . . . . . . . . . . . . 1 . Repair Stations . | . . . . . . . . . . . . . . Recycling Units 2 | . 2 . . . . . . . . . . . . Tunnel 2 | . 2 . . . . . . . . . . . . Scanalyzers . | . . . . . . . . . . . . . . Garrison Access . | . . . . . . . . . . . . . . Data Cores Recovered 1 | . . . . . . . . . . 1 . . . Used . | . . . . . . . . . . . . . . Hacking Detections 36 | . 1 . . 9 3 4 1 13 . 3 2 . . Full Trace Events 3 | . . . . . 1 . . 2 . . . . . Feedback Events . | . . . . . . . . . . . . . . Feedback Blocked . | . . . . . . . . . . . . . . Robot Schematics Acquired . | . . . . . . . . . . . . . . Robots Built . | . . . . . . . . . . . . . . Authchips . | . . . . . . . . . . . . . . Time . | . . . . . . . . . . . . . . Total Robot Build Rating . | . . . . . . . . . . . . . . Part Schematics Acquired 4 | . . . . . . . . 4 . . . . . Parts Built 2 | . . . . . . . . 2 . . . . . Authchips . | . . . . . . . . . . . . . . Time 106 | . . . . . . . . 106 . . . . . Total Part Build Rating 12 | . . . . . . . . 12 . . . . . Part Studies Acquired 2 | . . . . . . 1 . 1 . . . . . Parts Repaired . | . . . . . . . . . . . . . . Time . | . . . . . . . . . . . . . . Parts Recycled . | . . . . . . . . . . . . . . Recycled Matter . | . . . . . . . . . . . . . . Retrieved Matter . | . . . . . . . . . . . . . . Retrieved Components . | . . . . . . . . . . . . . . Parts Scanalyzed 2 | . . . . . . . . 2 . . . . . Part Schematics Acquired 2 | . . . . . . . . 2 . . . . . Parts Damaged . | . . . . . . . . . . . . . . Bothacking | -11 -10 -10 -10 -8 -8 -8 -8 -7 -7 -7 -7 -7 -7 ------------ Run | Yrd Mat Min Sub Mat Gar Mat Gar Fac Was Fac Gar Fac Low Used RIF Installer 4 | . . . . . 2 . 1 . . . 1 . . Command Fork 1 | . . . . . . . . . . . 1 . . Threat Obfuscator 1 | . . . . . . . 1 . . . . . . Robot Detection 1 | . . . . . 1 . . . . . . . . Robots Hacked 20 | . . . . . . 3 3 4 . . 7 1 2 Non-combat 3 | . . . . . . 1 . 2 . . . . . Combat 17 | . . . . . . 2 3 2 . . 7 1 2 Robot Hacks Applied 21 | . . . . . . 4 3 4 . . 7 1 2 parse_system 2 | . . . . . . 1 . . . . 1 . . map_route 2 | . . . . . . . . 2 . . . . . find_shortcuts 1 | . . . . . . 1 . . . . . . . scatter_targeting 1 | . . . . . . 1 . . . . . . . spike_heat 1 | . . . . . . . . . . . 1 . . overload_power 1 | . . . . . . . . . . . . . 1 amplify_resonance 2 | . . . . . . . 2 . . . . . . reboot_system 1 | . . . . . . . . . . . . . 1 overwrite_iff 1 | . . . . . . . . . . . 1 . . streamctrl_high 1 | . . . . . . 1 . . . . . . . formatsys_high 8 | . . . . . . . 1 2 . . 4 1 . Relay Couplers Released 59 | . . . . . 10 . 14 . . . 35 . . Machine Destruction 59 | . . . . . 10 . 14 . . . 35 . . Attached 13 | . . . . . . 3 2 2 . . 5 . 1 Fabnet Peak Effective % . | . . . . . . . . . . . . . . Robots Rewired 3 | . . . . . 3 . . . . . . . . Allies Hacked 2 | . . . . . . . . . . 2 . . . Hacks Repelled . | . . . . . . . . . . . . . . Allies | -11 -10 -10 -10 -8 -8 -8 -8 -7 -7 -7 -7 -7 -7 -------- Run | Yrd Mat Min Sub Mat Gar Mat Gar Fac Was Fac Gar Fac Low Total Allies 43 | . . . . . 3 1 1 2 20 . 11 4 1 Largest Group 20 | . . . . . 3 1 1 2 20 20 7 9 6 Highest-Rated Group 495 | . . . . . 82 20 21 48 495 494 294 294 376 Highest-Rated Ally 146 | . . . . . 31 20 21 32 35 35 95 95 146 Total Orders 7 | . . . . . 3 3 . . . . . . 1 STAY 5 | . . . . . 2 2 . . . . . . 1 FOLLOW 2 | . . . . . 1 1 . . . . . . . Ally Attacks 246 | . . . . . 7 13 1 11 . 128 53 21 12 Total Damage 5312 | . . . . . 190 255 . 189 . 2278 1304 758 338 Kills 49 | . . . . . 2 2 . 3 . 20 10 9 3 Allies Corrupted 2 | . . . . . . . . . . 1 . 1 . Allies Melted 1 | . . . . . . . . . . . . . 1 Intel | -11 -10 -10 -10 -8 -8 -8 -8 -7 -7 -7 -7 -7 -7 ------- Run | Yrd Mat Min Sub Mat Gar Mat Gar Fac Was Fac Gar Fac Low Active Infowar (turns) 4478 | 18 114 . 330 1313 884 . . 696 86 1035 2 . . Optics 131 | . . . . . . . . 131 . . . . . Sensors 1794 | . . . . . 2 . . 669 86 1035 2 . . Structural 27 | . . . . . . . . 27 . . . . . Seismic 2657 | 18 114 . 330 1313 882 . . . . . . . . Robot Analysis Total 5 | . 1 . . 1 . 2 . 1 . . . . . Derelict Logs Recovered 3 | . . 1 1 . . . . . . . . . 1 Drone Launches . | . . . . . . . . . . . . . . Drone Recoveries . | . . . . . . . . . . . . . . Exploration | -11 -10 -10 -10 -8 -8 -8 -8 -7 -7 -7 -7 -7 -7 ------------- Run | Yrd Mat Min Sub Mat Gar Mat Gar Fac Was Fac Gar Fac Low Turns Passed 13938 | 113 645 253 531 1599 2343 719 1357 1620 614 1104 2078 551 411 Spaces Moved 8319 | 52 391 233 381 588 1120 416 903 1582 407 637 1022 319 268 Core 899 | 2 . . . . . . . 864 33 . . . . Treads 2373 | 42 . . . . 323 . . . 297 637 1022 52 . Legs . | . . . . . . . . . . . . . . Wheels 5047 | 8 391 233 381 588 797 416 903 718 77 . . 267 268 Hover . | . . . . . . . . . . . . . . Flight . | . . . . . . . . . . . . . . Fastest Speed 50 | 50 95 95 95 120 130 130 115 50 50 160 160 150 150 Average Speed 131 | 146 103 95 119 154 165 130 127 80 136 160 160 151 150 Slowest Speed 250 | 160 115 110 120 170 250 130 130 150 160 160 160 160 150 Overloaded Moves . | . . . . . . . . . . . . . . Propulsion Burnouts . | . . . . . . . . . . . . . . Robots Hopped . | . . . . . . . . . . . . . . Potential Cave-ins . | . . . . . . . . . . . . . . Cave-ins Triggered . | . . . . . . . . . . . . . . Exploration Rate (%) 48 | 5 68 41 31 46 96 32 71 40 88 12 96 9 41 Regions Visited 13 Branch Regions 3 Pre-discovered Areas 4 | . 2 . . 1 . . . . . . . . 1 Known Exits Taken 4 | . . . . 1 . 1 . . . 1 . 1 . Unknown Exits Taken 4 | 1 1 1 1 . . . . . . . . . . Scrap Searched 4 | . . . 3 . . . . . . . . . 1 Spaces Dug 59 | . . . 1 4 7 2 15 24 . . 4 2 . Terrain Destroyed 556 | . . 32 4 21 121 2 232 80 . . 62 2 . Melee 29 | . . . . . 3 2 . 24 . . . . . Projectile 20 | . . . 4 7 . . . . . . 7 2 . AOE 507 | . . 32 . 14 118 . 232 56 . . 55 . . Terrain Rammed 1 | . . . . . . . . 1 . . . . . Walls Destroyed . | . . . . . . . . . . . . . . Machines Disabled . | . . . . . . . . . . . . . . Actions | -11 -10 -10 -10 -8 -8 -8 -8 -7 -7 -7 -7 -7 -7 --------- Run | Yrd Mat Min Sub Mat Gar Mat Gar Fac Was Fac Gar Fac Low Total 10378 | 71 523 247 423 1185 1417 557 1034 1804 466 712 1285 379 275 Wait 932 | 2 58 . 5 477 62 89 14 43 36 32 69 45 . Move 8309 | 51 390 232 380 588 1119 415 902 1582 406 637 1021 318 268 Hop . | . . . . . . . . . . . . . . Pick Up 146 | 4 10 . 5 25 21 4 14 16 11 14 20 1 1 Fast Attach 49 | 7 1 . 2 . 2 2 . 19 6 4 4 2 . Attach 39 | . 1 1 4 10 5 . 3 8 . 1 4 1 1 Detach 17 | . . . 2 4 . . . 5 1 1 3 . 1 Swap 135 | . 3 2 4 14 30 13 17 14 1 2 31 4 . Drop 106 | . 5 . 4 13 19 5 9 15 5 14 15 2 . Fire 472 | 7 55 12 17 54 90 23 54 44 . 7 99 6 4 Melee 109 | . . . . . 41 6 5 57 . . . . . Ram 1 | . . . . . . . . 1 . . . . . Kick . | . . . . . . . . . . . . . . Crush . | . . . . . . . . . . . . . . Escape Stasis 44 | . . . . . 28 . 16 . . . . . . Rewire . | . . . . . . . . . . . . . . Trap . | . . . . . . . . . . . . . . Miscellaneous 19 | . . . . . . . . . . . 19 . . Route ------- -11/Scrapyard -10/Materials (discovered 3 exits: [*Mat] / [*Min x2]) -10/Mines -10/Subcaves -8/Materials (discovered 4 exits: Fac x3 / Gar) -8/Garrison (discovered 3 exits: *Mat x3) -8/Materials -8/Garrison (discovered 3 exits: *Fac x3) -7/Factory (discovered 2 exits: *Low x2) -7/Waste -7/Factory (discovered 3 exits: *Fac / *Low / Gar) -7/Garrison (discovered 3 exits: *Fac x3) -7/Factory -7/Lower Caves (discovered 2 exits: Low / *Fac) History --------- Turn | Location | Event 23 | -11/Scrapyard | Discovered new exit (range 14) 114 | -11/Scrapyard | Entered Materials 278 | -10/Materials | Discovered new exit (range 15) 306 | -10/Materials | Build established: Mutant 426 | -10/Materials | Discovered new exit (range 10) 515 | -10/Materials | Discovered new exit (range 7) 759 | -10/Materials | Entered Mines 760 | -10/Mines | Core integrity fell below 50% 771 | -10/Mines | Met a Derelict bent on vengeance 787 | -10/Mines | Discovered new exit (range 12) 846 | -10/Mines | Learned 2 Materials zone layouts 889 | -10/Mines | Assembled infested the area 894 | -10/Mines | Assisted by a Guerilla fighting off Assembled 956 | -10/Mines | Destroyed 15 combat bots 1012 | -10/Mines | Entered Subcaves 1028 | -10/Subcaves | Core integrity fell below 20% 1095 | -10/Subcaves | Shifting Twisted Machinery released Spk. Treads 1227 | -10/Subcaves | Visited 4L-MR0's lab 1246 | -10/Subcaves | Found Gun Armor 1382 | -10/Subcaves | Attached Gun Armor, gained temporary slots: Weapon x2 1446 | -10/Subcaves | Learned Materials security intel 1462 | -10/Subcaves | A swath of the cavern ceiling suddenly collapsed 1534 | -10/Subcaves | Discovered new exit (range 5) 1543 | -10/Subcaves | Entered Materials 1543 | -8/Materials | Evolved 4 slots: Utility x4 1544 | -8/Materials | Identified exit to Factory 2279 | -8/Materials | Garrison activated, responded to threat 2553 | -8/Materials | Learned Storage machine intel 2706 | -8/Materials | Learned location of Lower Caves (-7) 2736 | -8/Materials | Build established: Gunner 2766 | -8/Materials | Learned Storage stockpile data 2815 | -8/Materials | Learned Storage stockpile data 2885 | -8/Materials | Learned Factory garrison access intel 2924 | -8/Materials | Learned location of 1 exit from Lower Caves 2957 | -8/Materials | Garrison activated, responded to threat 2973 | -8/Materials | Learned Factory garrison access intel 3142 | -8/Materials | Identified exit to Garrison 3142 | -8/Materials | Entered Garrison 3147 | -8/Garrison | Triggered checkpoint 3290 | -8/Garrison | Build established: Mutant 3355 | -8/Garrison | Triggered checkpoint 3506 | -8/Garrison | Triggered checkpoint 4112 | -8/Garrison | Discovered new exit (range 10) 4168 | -8/Garrison | Triggered checkpoint 4420 | -8/Garrison | Triggered checkpoint 4466 | -8/Garrison | Triggered checkpoint 4572 | -8/Garrison | Triggered checkpoint 4664 | -8/Garrison | Discovered new exit (range 3) 4732 | -8/Garrison | Phase Generator disabled 4912 | -8/Garrison | P-60 Hacker assimilated allied BR-J2A(g) 4973 | -8/Garrison | Installed Relay Interface Framework 5033 | -8/Garrison | Garrison Relay disabled 5087 | -8/Garrison | Discovered new exit (range 10) 5128 | -8/Garrison | Triggered checkpoint 5175 | -8/Garrison | Discovered new exit (range 18) 5175 | -8/Garrison | Discovered new exit (range 45) 5175 | -8/Garrison | Discovered new exit (range 75) 5279 | -8/Garrison | Expanded RIF knowledge: Robot Detection 5300 | -8/Garrison | Garrison Relay disabled 5436 | -8/Garrison | Garrison Relay disabled 5485 | -8/Garrison | Entered Materials 5485 | -8/Materials | Accompanied by 1 ally 5599 | -8/Materials | Build established: Bothacker-Mutant 6200 | -8/Materials | Identified exit to Garrison 6204 | -8/Materials | Entered Garrison 6249 | -8/Garrison | Triggered checkpoint 6270 | -8/Garrison | Destroyed 7 combat bots 6291 | -8/Garrison | Discovered exit to Factory (range 47) 6291 | -8/Garrison | Discovered exit to Factory (range 71) 6291 | -8/Garrison | Discovered exit to Factory (range 69) 6532 | -8/Garrison | Triggered checkpoint 6540 | -8/Garrison | Spotted B-75 Beast 6560 | -8/Garrison | Triggered checkpoint 6792 | -8/Garrison | Expanded RIF knowledge: Threat Obfuscation 6829 | -8/Garrison | Triggered checkpoint 6859 | -8/Garrison | Core integrity fell below 50% 7144 | -8/Garrison | Garrison Relay disabled 7230 | -8/Garrison | Garrison Relay disabled 7561 | -8/Garrison | Entered Factory 7561 | -7/Factory | Evolved 2 slots: Propulsion x1, Weapon x1 7562 | -7/Factory | Loaded intel: 4 garrison access locations 7954 | -7/Factory | Fabricated Imp. Arc Projector? 7961 | -7/Factory | First assault squad dispatched 8034 | -7/Factory | Discovered new exit (range 14) 8055 | -7/Factory | Garrison activated, responded to threat 8097 | -7/Factory | Destroyed 9 combat bots 8103 | -7/Factory | Lost 4 parts (1p1n2w) 8345 | -7/Factory | Discovered new exit (range 15) 8668 | -7/Factory | Lost 7 parts (1p3n2u1w) 8971 | -7/Factory | Found Powered Armor 9088 | -7/Factory | Core integrity fell below 50% 9181 | -7/Factory | Sucked down chute 9181 | -7/Factory | Entered Waste 9182 | -7/Waste | Joined by Warlord forces that had cleared the area 9203 | -7/Waste | Found Prototype Processor 9203 | -7/Waste | Identified Exp. Melee Analysis Suite 9389 | -7/Waste | Build established: Mutant 9401 | -7/Waste | Discovered new exit (range 14) 9758 | -7/Waste | Identified exit to Factory 9795 | -7/Waste | Entered Factory 9795 | -7/Factory | Accompanied by 20 allies 9796 | -7/Factory | Loaded intel: 4 garrison access locations 10045 | -7/Factory | Discovered new exit (range 9) 10075 | -7/Factory | Identified exit to Lower Caves 10188 | -7/Factory | Build established: Skirmisher 10322 | -7/Factory | Discovered new exit (range 16) 10403 | -7/Factory | Lost 3 allies 10540 | -7/Factory | Identified exit to Factory 10657 | -7/Factory | Lost 3 allies 10881 | -7/Factory | Identified exit to Garrison 10899 | -7/Factory | Entered Garrison 10899 | -7/Garrison | Accompanied by 7 allies 10922 | -7/Garrison | Build established: Mutant 11096 | -7/Garrison | Triggered checkpoint 11156 | -7/Garrison | Garrison Relay disabled 11264 | -7/Garrison | Triggered checkpoint 11319 | -7/Garrison | Expanded RIF knowledge: Command Fork 11355 | -7/Garrison | Triggered checkpoint 11358 | -7/Garrison | Triggered checkpoint 11395 | -7/Garrison | Lost 3 allies 11457 | -7/Garrison | Build established: Bothacker-Tank 11558 | -7/Garrison | Discovered new exit (range 11) 11659 | -7/Garrison | Triggered checkpoint 11668 | -7/Garrison | Lost 3 parts (1p1n1u) 11777 | -7/Garrison | Core integrity fell below 20% 11794 | -7/Garrison | Rescued a captive Derelict 11796 | -7/Garrison | Rescued a captive Derelict 11887 | -7/Garrison | Garrison Relay disabled 12143 | -7/Garrison | Discovered new exit (range 7) 12271 | -7/Garrison | Found embedded Infiltrators 12322 | -7/Garrison | Learned Factory security intel 12340 | -7/Garrison | Discovered new exit (range 10) 12387 | -7/Garrison | Triggered checkpoint 12419 | -7/Garrison | Garrison Relay disabled 12685 | -7/Garrison | Triggered checkpoint 12710 | -7/Garrison | Build established: Botlord-Tank 12757 | -7/Garrison | Garrison Relay disabled 12806 | -7/Garrison | Garrison Relay disabled 12806 | -7/Garrison | Garrison Relay disabled 12830 | -7/Garrison | Garrison Relay disabled 12849 | -7/Garrison | Garrison Relay disabled 12977 | -7/Garrison | Entered Factory 12977 | -7/Factory | Accompanied by 5 allies 13468 | -7/Factory | Discovered exit to Lower Caves (range 7) 13528 | -7/Factory | Entered Lower Caves 13528 | -7/Lower Caves | Accompanied by 5 allies 13529 | -7/Lower Caves | Identified exit to Lower Caves 13751 | -7/Lower Caves | NK-0LA showed up to help 13760 | -7/Lower Caves | NK-0LA revealed a hidden path 13878 | -7/Lower Caves | Encountered a Warlord checkpoint 13898 | -7/Lower Caves | Spotted B-75 Beast 13939 | -7/Lower Caves | Destroyed by S-27 Virus with Autogun Last Messages --------------- misfires. 13903_ Trooper 4d destroyed. 13904_ MF-BEO(x) destroyed. 13905_ Guardian 4c destroyed. 13907_ TG-4VV(x) suffers critical hit (Meltdown). 13907_ S-27 Virus destroyed. 13909_ Autogun fries itself beyond repair. 13910_ Jacked S-27 Virus... >>overload_power Initiated overload sequence, T-6 to critical power. 13912_ Guardian 4b destroyed. 13912_ Acquired 19 matter. 13915_ Lgt. Nuclear Core fries itself beyond repair. 13916_ S-27 Virus Lgt. Nuclear Core critical detonation. 13916_ S-27 Virus destroyed. 13937_ Y1-P08(M) destroyed. Map ----- +----------------------------------------------------+ | ?????????????????????????????## #?## #??? | | ????????????????????????????## #??## ####??? | | ???????????????????????????## ##??## ##?????? | | ???????????????????????????# ##??## #??????? | | ???????????????????????????## #??## #??????? | | ????????????????????????????## #??# #??????? | | ?????????????????????????????#####??# ####???? | | ????????????????????????????????????## ##??? | | ?????????????????????????????????????## #??? | | ?????????????????????????????????????## #??? | | ???????????????????????#?????????????# #??? | | ????????????????????? ????????????# #??? | | ???????????????????? ????????????## #### | | ??????????????????? ????????????# | | ?????????????????? ????????????# | | ??????????????????? ????????????# ##" """ | | ???????????????????? ????????????# ##" """""" | | ???????????????#????? ????????????# ##" """ | | ?????????????### ???? ##?????????## #""""""""" | | ?????????????# ???? #####?????# """""""""# | | ?????????????? ???# #?##### """"" # | | ???????????????? ?# #?# # | | ??????????????????# ## ### ## | | ??????????????????# ##!% ## | | ??????????????????# #?# %!### | | ??????????????????# @ ### %##?### ##### | | ??????????????????# % #???## #???# | | ??????????????????# s% #???# #???# | | ??????????????????# ## #???# ##??# | | ???????????????#### ## #???## #??# | | ??????????????# %*% ####????# #??# | | ??????????????# ! ![##??????# ##??? | | ??????????????# ###### !%[##?????##### #???? | | ??????????????#??????# * #??????????##???? | | ?????????????????????## ##; [ #???????????????? | | ??????????????????????###??## !%[#?###???????????? | | ????????????????????????????#;=! "## ##??????????? | | ????????????????????????????#;%[ ]! ##?????????? | | ????????????????????????????##=% =%= ##????????? | | ?????????????????????????????" "#"=[ ##???????? | | ?????????????????????????????" ###% "#??????? | | ?????????????????????????????# #??#" #??????? | | ?????????????????????????????# #???# #?????? | | ????????????????????????????? #???? #?????? | | ????????????????????????????? ????? ????? | | ???????????????????????????? ????? ??? | | ????????????????????????????#% %=??????#" #?? | | ????????????????????????????### ???????## #?? | | ??????????????????????????????? ?????????# ##?? | | ??????????????????????????????? ??????????# ?? | +----------------------------------------------------+ Best States ------------- Heat Dissipation 61 Energy Generation 21 Energy Capacity 325 Matter Stores 300 Matter Capacity 300 Sight Range 18 Robot Scan Range 15 Terrain Scan Density 10 Armor Coverage 750 Resistance: EM 15 Utility Shielding 66 Weapon Shielding 33 Evasion (%) 50 Targeting Accuracy 5 Recoil Reduction 6 Energy Filtering 50 Salvage Targeting 2 Offensive Hacking 14 Defensive Hacking 10 Relay Coupler Types 4 Relay Coupler Value 85 Authchip Count 1 Item Schematics ----------------- Remote Datajack | -7/Factory | Hacked Huge Storage Unit | -7/Factory | Hacked Hvy. Missile Launcher | -7/Factory | Scanalyzed Powered Armor | -7/Factory | Scanalyzed Robot Schematics ------------------ None Fabricated ------------ Imp. Arc Projector | x2 | -7/Factory | Preloaded Repaired ---------- Nothing Studied --------- Minigun | -8/Materials | Hacked Hvy. Missile Launcher | -7/Factory | Hacked Alien Tech Used ----------------- None Achievements -------------- Factory Defaults Let Me Out Of Here Mindtrick Mistaken Identity That Tickles Versatile Challenges ------------ None Game ------ Seed LinearMinesnifferBlaster Manual? 0 Play Time 02:35:29 Cumulative 178.1 hours Start 2026.02.03 @ 01:26:29 End 2026.02.03 @ 23:19:38 Sessions 2 Manual Loads 0 Difficulty Rogue Special Mode None Game No. 88 Rogue 88 Adventurer 0 Explorer 0 Win Type - Total 3 Types 3/0/0/0/0/0/0/0/0/0 Lore% 53 Gallery% 60 Achievement% 43 Wizard Run 0 Options --------- Layout 1 ASCII 0 Keyboard 1 Movement Numpad Keybinds 0 Fullscreen 1 Font 24/Smallcaps Map View 50x35 Zoom Use 0% Tactical HUD 1 Map Filters NONE Filters NONE Steam 1 RUN: dcbc7864-3c19-41e8-88a1-b722472779f7